[Event "Early-Titled-Tuesday-Blitz-April-16-2024"]
[Site "Chess.com"]
[Date "2024.04.16"]
[Round "7"]
[White "superchess02"]
[Black "DenLaz"]
[Result "1/2-1/2"]
[WhiteElo "2906"]
[BlackElo "3108"]
[TimeControl "180+1"]
[EndTime "9:22:44 PDT"]
[Termination "Game drawn - insufficient material"]

1. d4 {[%clk 0:03:00.2]} 1... Nf6 {[%clk 0:02:59.9]} 2. c4 {[%clk 0:03:00.8]}
2... e6 {[%clk 0:03:00.4]} 3. Nc3 {[%clk 0:03:01.5]} 3... Bb4 {[%clk 0:03:00.3]}
4. e3 {[%clk 0:03:02]} 4... O-O {[%clk 0:03:00.3]} 5. Bd3 {[%clk 0:03:02.6]}
5... d5 {[%clk 0:03:01]} 6. Ne2 {[%clk 0:03:01.8]} 6... dxc4 {[%clk 0:02:55.7]}
7. Bxc4 {[%clk 0:03:02.7]} 7... a6 {[%clk 0:02:52.3]} 8. a3 {[%clk 0:03:02.3]}
8... Be7 {[%clk 0:02:52]} 9. a4 {[%clk 0:02:58.2]} 9... c5 {[%clk 0:02:51.4]}
10. O-O {[%clk 0:02:58.7]} 10... Nc6 {[%clk 0:02:52]} 11. d5 {[%clk 0:02:52]}
11... Na5 {[%clk 0:02:44.5]} 12. Ba2 {[%clk 0:02:48.6]} 12... c4 {[%clk
0:02:44.4]} 13. dxe6 {[%clk 0:02:43.5]} 13... Bxe6 {[%clk 0:02:44.5]} 14. Nf4
{[%clk 0:02:39.8]} 14... Bf5 {[%clk 0:02:44.1]} 15. Qf3 {[%clk 0:02:34.4]} 15...
Bd6 {[%clk 0:02:34]} 16. h3 {[%clk 0:02:29.9]} 16... Qe7 {[%clk 0:02:14.8]} 17.
Ncd5 {[%clk 0:02:16]} 17... Nxd5 {[%clk 0:02:10.7]} 18. Qxd5 {[%clk 0:02:16.9]}
18... Qe5 {[%clk 0:02:10.8]} 19. Bd2 {[%clk 0:02:17]} 19... Qxd5 {[%clk
0:01:51.7]} 20. Nxd5 {[%clk 0:02:17.9]} 20... Nb3 {[%clk 0:01:52.6]} 21. Bxb3
{[%clk 0:02:15.1]} 21... cxb3 {[%clk 0:01:53.5]} 22. Bc3 {[%clk 0:02:07.6]}
22... Bc2 {[%clk 0:01:47.4]} 23. Nb4 {[%clk 0:01:52.2]} 23... Bxb4 {[%clk
0:01:38.6]} 24. Bxb4 {[%clk 0:01:53.1]} 24... Rfd8 {[%clk 0:01:38.5]} 25. f3
{[%clk 0:01:49.2]} 25... Rac8 {[%clk 0:01:38.6]} 26. Rf2 {[%clk 0:01:38.3]}
26... Rc4 {[%clk 0:01:37.6]} 27. Be1 {[%clk 0:01:38.3]} 27... f6 {[%clk
0:01:24.7]} 28. Rd2 {[%clk 0:01:38.2]} 28... Rxd2 {[%clk 0:01:08.1]} 29. Bxd2
{[%clk 0:01:39.1]} 29... b6 {[%clk 0:01:01.6]} 30. e4 {[%clk 0:01:30.3]} 30...
Bd3 {[%clk 0:00:54.1]} 31. Be3 {[%clk 0:01:30.4]} 31... Rc2 {[%clk 0:00:49.6]}
32. Bd4 {[%clk 0:01:29]} 32... Bc4 {[%clk 0:00:39.7]} 33. Rb1 {[%clk 0:01:17.5]}
33... b5 {[%clk 0:00:38.3]} 34. axb5 {[%clk 0:01:17.1]} 34... Bxb5 {[%clk
0:00:39.2]} 35. Bc3 {[%clk 0:01:08.6]} 35... Bd3 {[%clk 0:00:36.5]} 36. Bb4
{[%clk 0:01:07.8]} 36... Rc4 {[%clk 0:00:25]} 37. Rd1 {[%clk 0:01:07]} 37...
Rxb4 {[%clk 0:00:25.3]} 38. Rxd3 {[%clk 0:01:06.6]} 38... a5 {[%clk 0:00:26.2]}
39. Rd7 {[%clk 0:01:03]} 39... a4 {[%clk 0:00:26.3]} 40. Ra7 {[%clk 0:01:03.6]}
40... h5 {[%clk 0:00:26.9]} 41. h4 {[%clk 0:01:03.3]} 41... Kh7 {[%clk
0:00:25.4]} 42. Kh2 {[%clk 0:01:04]} 42... Kg6 {[%clk 0:00:25.3]} 43. Kg3 {[%clk
0:01:04.2]} 43... Rc4 {[%clk 0:00:24.6]} 44. Kf4 {[%clk 0:01:01.6]} 44... Rc2
{[%clk 0:00:24.2]} 45. g4 {[%clk 0:01:01.9]} 45... hxg4 {[%clk 0:00:23.4]} 46.
Kxg4 {[%clk 0:00:58.4]} 46... Rxb2 {[%clk 0:00:22]} 47. Rxa4 {[%clk 0:00:58.7]}
47... Rb1 {[%clk 0:00:22.4]} 48. Rb4 {[%clk 0:00:56.8]} 48... b2 {[%clk
0:00:21.3]} 49. Kf4 {[%clk 0:00:57.1]} 49... Kh5 {[%clk 0:00:20.6]} 50. Rb8
{[%clk 0:00:54.7]} 50... Kg6 {[%clk 0:00:13.6]} 51. Rb7 {[%clk 0:00:53.8]} 51...
Kh6 {[%clk 0:00:13.6]} 52. Kf5 {[%clk 0:00:53.4]} 52... Rf1 {[%clk 0:00:07.8]}
53. Rxb2 {[%clk 0:00:51.8]} 53... Rxf3+ {[%clk 0:00:08.4]} 54. Kg4 {[%clk
0:00:51.7]} 54... Re3 {[%clk 0:00:08.5]} 55. Kf4 {[%clk 0:00:52.1]} 55... Ra3
{[%clk 0:00:09.1]} 56. Rg2 {[%clk 0:00:48.2]} 56... Ra1 {[%clk 0:00:08.9]} 57.
Kf5 {[%clk 0:00:47.1]} 57... Rf1+ {[%clk 0:00:08.6]} 58. Ke6 {[%clk 0:00:47.2]}
58... Ra1 {[%clk 0:00:05.5]} 59. Kf5 {[%clk 0:00:42]} 59... Ra5+ {[%clk
0:00:05.3]} 60. Kf4 {[%clk 0:00:42.6]} 60... g6 {[%clk 0:00:05.5]} 61. Rg1
{[%clk 0:00:39.9]} 61... Kh5 {[%clk 0:00:05.7]} 62. Rg2 {[%clk 0:00:39.5]} 62...
Ra1 {[%clk 0:00:05.1]} 63. Ke3 {[%clk 0:00:27]} 63... Re1+ {[%clk 0:00:04.9]}
64. Kd4 {[%clk 0:00:27.1]} 64... Rh1 {[%clk 0:00:04.7]} 65. Rf2 {[%clk
0:00:27.4]} 65... Rxh4 {[%clk 0:00:02.5]} 66. Rxf6 {[%clk 0:00:27.4]} 66... g5
{[%clk 0:00:03.4]} 67. Rf8 {[%clk 0:00:26.1]} 67... Kg4 {[%clk 0:00:02.7]} 68.
e5 {[%clk 0:00:25.7]} 68... Rh1 {[%clk 0:00:03.4]} 69. e6 {[%clk 0:00:25.7]}
69... Re1 {[%clk 0:00:04.1]} 70. Kd5 {[%clk 0:00:25.7]} 70... Kg3 {[%clk
0:00:04.6]} 71. Kd6 {[%clk 0:00:25.3]} 71... g4 {[%clk 0:00:05.1]} 72. e7 {[%clk
0:00:25.7]} 72... Kg2 {[%clk 0:00:04.5]} 73. e8=Q {[%clk 0:00:25.8]} 73... Rxe8
{[%clk 0:00:05.1]} 74. Rxe8 {[%clk 0:00:26.7]} 74... g3 {[%clk 0:00:05.7]} 75.
Ke5 {[%clk 0:00:27.2]} 75... Kf2 {[%clk 0:00:06.3]} 76. Rf8+ {[%clk 0:00:27.1]}
76... Ke3 {[%clk 0:00:06.4]} 77. Rg8 {[%clk 0:00:27.2]} 77... Kf2 {[%clk
0:00:06.5]} 78. Kf4 {[%clk 0:00:25.1]} 78... g2 {[%clk 0:00:06.7]} 79. Rxg2+
{[%clk 0:00:19.8]} 79... Kxg2 {[%clk 0:00:07.6]} 1/2-1/2

[Event "Early-Titled-Tuesday-Blitz-April-16-2024"]
[Site "Chess.com"]
[Date "2024.04.16"]
[Round "7"]
[White "becemix"]
[Black "VacheH009"]
[Result "1-0"]
[WhiteElo "2508"]
[BlackElo "2616"]
[TimeControl "180+1"]
[EndTime "9:22:55 PDT"]
[Termination "becemix won on time"]

1. e4 {[%clk 0:02:57.5]} 1... e5 {[%clk 0:02:56.3]} 2. Nc3 {[%clk 0:02:56.1]}
2... Nf6 {[%clk 0:02:54.6]} 3. g3 {[%clk 0:02:56.2]} 3... Bc5 {[%clk 0:02:53]}
4. Bg2 {[%clk 0:02:55.8]} 4... d6 {[%clk 0:02:53]} 5. Na4 {[%clk 0:02:50.3]}
5... Bb4 {[%clk 0:02:39.2]} 6. a3 {[%clk 0:02:48.5]} 6... Ba5 {[%clk 0:02:38.2]}
7. b4 {[%clk 0:02:48.6]} 7... Bd7 {[%clk 0:02:36.9]} 8. bxa5 {[%clk 0:02:26.3]}
8... Bxa4 {[%clk 0:02:35.3]} 9. Rb1 {[%clk 0:02:26.5]} 9... Bc6 {[%clk 0:02:34]}
10. d3 {[%clk 0:02:25.9]} 10... O-O {[%clk 0:02:29.8]} 11. c4 {[%clk 0:02:25.4]}
11... b6 {[%clk 0:02:18.7]} 12. axb6 {[%clk 0:02:06.5]} 12... axb6 {[%clk
0:02:19.6]} 13. Ne2 {[%clk 0:02:06.9]} 13... Na6 {[%clk 0:02:11.6]} 14. Nc3
{[%clk 0:02:06.3]} 14... Nc5 {[%clk 0:02:09.8]} 15. O-O {[%clk 0:02:06.4]} 15...
h6 {[%clk 0:01:32.8]} 16. f4 {[%clk 0:02:04.9]} 16... Ne6 {[%clk 0:01:23.3]} 17.
f5 {[%clk 0:02:03.4]} 17... Nd4 {[%clk 0:01:23.3]} 18. Ra1 {[%clk 0:01:52.8]}
18... Nd7 {[%clk 0:01:17.6]} 19. h4 {[%clk 0:01:49.9]} 19... Nc5 {[%clk
0:01:15.5]} 20. Ne2 {[%clk 0:01:42.2]} 20... Nxe2+ {[%clk 0:01:06.5]} 21. Qxe2
{[%clk 0:01:42]} 21... Nb3 {[%clk 0:01:07.4]} 22. Ra2 {[%clk 0:01:41.9]} 22...
Nxc1 {[%clk 0:01:06.5]} 23. Rxc1 {[%clk 0:01:42.8]} 23... Ra5 {[%clk 0:01:02.9]}
24. Kh2 {[%clk 0:01:39.9]} 24... f6 {[%clk 0:00:56]} 25. Rc3 {[%clk 0:01:35.4]}
25... Qe7 {[%clk 0:00:54.3]} 26. Bf3 {[%clk 0:01:34.2]} 26... Rfa8 {[%clk
0:00:54.4]} 27. Bh5 {[%clk 0:01:31.4]} 27... Be8 {[%clk 0:00:47.4]} 28. Bxe8
{[%clk 0:01:23.8]} 28... Qxe8 {[%clk 0:00:48.3]} 29. Qb2 {[%clk 0:01:23.1]}
29... Qc6 {[%clk 0:00:45.5]} 30. Kg2 {[%clk 0:01:09.9]} 30... Qc5 {[%clk
0:00:44.2]} 31. Qf2 {[%clk 0:01:09.7]} 31... Qxf2+ {[%clk 0:00:25.7]} 32. Kxf2
{[%clk 0:01:09.5]} 32... Kf7 {[%clk 0:00:26.6]} 33. Ke3 {[%clk 0:01:04.6]} 33...
Ke7 {[%clk 0:00:27]} 34. Rb3 {[%clk 0:01:02.6]} 34... Kd7 {[%clk 0:00:26.7]} 35.
Kd2 {[%clk 0:01:02.5]} 35... Kc6 {[%clk 0:00:26.6]} 36. Kc3 {[%clk 0:01:02.4]}
36... Kc5 {[%clk 0:00:27.1]} 37. Ra1 {[%clk 0:01:01.7]} 37... c6 {[%clk
0:00:25.3]} 38. g4 {[%clk 0:00:57.4]} 38... Ra4 {[%clk 0:00:17.1]} 39. Kb2
{[%clk 0:00:52.7]} 39... Rb8 {[%clk 0:00:14.8]} 40. Rg1 {[%clk 0:00:50]} 40...
Kd4 {[%clk 0:00:13.5]} 41. g5 {[%clk 0:00:49.9]} 41... hxg5 {[%clk 0:00:14.1]}
42. hxg5 {[%clk 0:00:49.7]} 42... Ra7 {[%clk 0:00:14.7]} 43. gxf6 {[%clk
0:00:30.7]} 43... gxf6 {[%clk 0:00:15.6]} 44. Rg6 {[%clk 0:00:31]} 44... Rf7
{[%clk 0:00:12.8]} 45. a4 {[%clk 0:00:30.6]} 45... Ra8 {[%clk 0:00:12.1]} 46.
Ka3 {[%clk 0:00:20.5]} 46... Kc5 {[%clk 0:00:11.3]} 47. Rb2 {[%clk 0:00:16.7]}
47... Rh8 {[%clk 0:00:11.6]} 48. Rb3 {[%clk 0:00:14.2]} 48... Rh2 {[%clk
0:00:10.3]} 49. Rg8 {[%clk 0:00:12.8]} 49... Rd2 {[%clk 0:00:10.7]} 50. Rb8
{[%clk 0:00:12.5]} 50... Kd4 {[%clk 0:00:09.6]} 51. R8xb6 {[%clk 0:00:12.2]}
51... Rc7 {[%clk 0:00:09.2]} 52. a5 {[%clk 0:00:10.9]} 52... Rxd3 {[%clk
0:00:09.4]} 53. Rxd3+ {[%clk 0:00:10.6]} 53... Kxd3 {[%clk 0:00:10.3]} 54. a6
{[%clk 0:00:11]} 54... Kxe4 {[%clk 0:00:08.2]} 55. Rb7 {[%clk 0:00:10.6]} 55...
Rc8 {[%clk 0:00:08.8]} 56. a7 {[%clk 0:00:10.8]} 56... Ra8 {[%clk 0:00:08.9]}
57. Kb4 {[%clk 0:00:11.3]} 57... d5 {[%clk 0:00:08.8]} 58. c5 {[%clk 0:00:10.3]}
58... d4 {[%clk 0:00:08.9]} 59. Ka5 {[%clk 0:00:10.7]} 59... d3 {[%clk
0:00:09.1]} 60. Kb6 {[%clk 0:00:11.3]} 60... Kf3 {[%clk 0:00:07.5]} 61. Rb8
{[%clk 0:00:08.9]} 61... Rxa7 {[%clk 0:00:07.7]} 62. Kxa7 {[%clk 0:00:09.8]}
62... e4 {[%clk 0:00:08.1]} 63. Rd8 {[%clk 0:00:09.7]} 63... Ke2 {[%clk
0:00:07.4]} 64. Kb6 {[%clk 0:00:10.1]} 64... d2 {[%clk 0:00:07.4]} 65. Kxc6
{[%clk 0:00:10.7]} 65... e3 {[%clk 0:00:07.9]} 66. Kb6 {[%clk 0:00:08.2]} 66...
d1=Q {[%clk 0:00:05.3]} 67. Rxd1 {[%clk 0:00:08.5]} 67... Kxd1 {[%clk
0:00:06.2]} 68. c6 {[%clk 0:00:09]} 68... e2 {[%clk 0:00:06.8]} 69. c7 {[%clk
0:00:09.9]} 69... e1=Q {[%clk 0:00:07.7]} 70. c8=Q {[%clk 0:00:10.6]} 70... Qb4+
{[%clk 0:00:04.5]} 71. Kc7 {[%clk 0:00:10.7]} 71... Qc5+ {[%clk 0:00:04.7]} 72.
Kd8 {[%clk 0:00:10.9]} 72... Qe5 {[%clk 0:00:02]} 73. Qe6 {[%clk 0:00:09.2]}
73... Qc3 {[%clk 0:00:02.6]} 74. Ke7 {[%clk 0:00:09.2]} 74... Qc7+ {[%clk
0:00:01.9]} 75. Qd7+ {[%clk 0:00:07.6]} 1-0

[Event "Early-Titled-Tuesday-Blitz-April-16-2024"]
[Site "Chess.com"]
[Date "2024.04.16"]
[Round "7"]
[White "Witik"]
[Black "Lion-Al-Messi"]
[Result "1-0"]
[WhiteElo "2717"]
[BlackElo "2576"]
[TimeControl "180+1"]
[EndTime "9:22:59 PDT"]
[Termination "Witik won by resignation"]

1. d4 {[%clk 0:02:59.7]} 1... Nf6 {[%clk 0:02:59.6]} 2. Nf3 {[%clk 0:02:59.5]}
2... b6 {[%clk 0:02:59.6]} 3. Bg5 {[%clk 0:02:53.4]} 3... Bb7 {[%clk 0:02:58.9]}
4. Nbd2 {[%clk 0:02:49.2]} 4... c5 {[%clk 0:02:56.5]} 5. c3 {[%clk 0:02:39.8]}
5... g6 {[%clk 0:02:49.8]} 6. Bxf6 {[%clk 0:02:38.9]} 6... exf6 {[%clk
0:02:50.7]} 7. g3 {[%clk 0:02:35.6]} 7... Bg7 {[%clk 0:02:50.3]} 8. Bg2 {[%clk
0:02:36.3]} 8... O-O {[%clk 0:02:50.4]} 9. O-O {[%clk 0:02:37]} 9... d6 {[%clk
0:02:50.3]} 10. Ne1 {[%clk 0:02:32.9]} 10... Qc8 {[%clk 0:02:47.5]} 11. Bxb7
{[%clk 0:02:30.4]} 11... Qxb7 {[%clk 0:02:48.4]} 12. e3 {[%clk 0:02:27.7]} 12...
Nd7 {[%clk 0:02:47.2]} 13. Qf3 {[%clk 0:02:25.9]} 13... Qxf3 {[%clk 0:02:44.3]}
14. Ndxf3 {[%clk 0:02:25.5]} 14... f5 {[%clk 0:02:44.3]} 15. Nd3 {[%clk
0:02:24]} 15... Nf6 {[%clk 0:02:44.4]} 16. Rfd1 {[%clk 0:02:19.7]} 16... Ne4
{[%clk 0:02:44.4]} 17. Nf4 {[%clk 0:02:18]} 17... Rad8 {[%clk 0:02:41.6]} 18.
Nd5 {[%clk 0:02:17.3]} 18... Rfe8 {[%clk 0:02:39.3]} 19. Kg2 {[%clk 0:02:16]}
19... h6 {[%clk 0:02:38]} 20. dxc5 {[%clk 0:02:06.1]} 20... dxc5 {[%clk
0:02:35.7]} 21. Ne7+ {[%clk 0:02:06.3]} 21... Kh7 {[%clk 0:02:34.8]} 22. Nc6
{[%clk 0:02:06.5]} 22... Rxd1 {[%clk 0:02:20]} 23. Rxd1 {[%clk 0:02:05.7]} 23...
b5 {[%clk 0:01:57.7]} 24. Rd7 {[%clk 0:01:58.4]} 24... Re6 {[%clk 0:01:34.2]}
25. Nxa7 {[%clk 0:01:22.8]} 25... Ra6 {[%clk 0:01:30.8]} 26. a3 {[%clk
0:01:18.7]} 26... Nd6 {[%clk 0:01:25.1]} 27. Ne1 {[%clk 0:01:02.3]} 27... Kg8
{[%clk 0:01:16.1]} 28. Nd3 {[%clk 0:01:00.3]} 28... Ne4 {[%clk 0:01:08.4]} 29.
Nxb5 {[%clk 0:00:56.9]} 29... Rb6 {[%clk 0:00:59.6]} 30. c4 {[%clk 0:00:51.9]}
30... Nd2 {[%clk 0:00:59.6]} 31. Nxc5 {[%clk 0:00:35.3]} 31... Nxc4 {[%clk
0:00:59.5]} 32. Rb7 {[%clk 0:00:24.4]} 32... Rc6 {[%clk 0:00:45.9]} 33. b4
{[%clk 0:00:22.5]} 33... Rc8 {[%clk 0:00:37.9]} 34. Nd7 {[%clk 0:00:17.4]} 34...
Nd2 {[%clk 0:00:32.5]} 35. Rb8 {[%clk 0:00:17]} 35... Rxb8 {[%clk 0:00:29.7]}
36. Nxb8 {[%clk 0:00:17.9]} 36... Nc4 {[%clk 0:00:26.5]} 37. a4 {[%clk 0:00:17]}
37... Kf8 {[%clk 0:00:24.7]} 38. a5 {[%clk 0:00:16.6]} 38... Ke8 {[%clk
0:00:22.3]} 39. a6 {[%clk 0:00:14.5]} 39... Nb6 {[%clk 0:00:22.4]} 40. a7 {[%clk
0:00:13.7]} 40... Na8 {[%clk 0:00:22.7]} 41. Na6 {[%clk 0:00:13.1]} 41... Be5
{[%clk 0:00:19.3]} 42. Nc5 {[%clk 0:00:06.4]} 42... Kd8 {[%clk 0:00:10.6]} 43.
f4 {[%clk 0:00:06.7]} 43... Bc7 {[%clk 0:00:09.3]} 44. Nxc7 {[%clk 0:00:03.2]}
44... Kxc7 {[%clk 0:00:10.2]} 45. b5 {[%clk 0:00:03.6]} 45... Kb6 {[%clk
0:00:10.1]} 46. Nd7+ {[%clk 0:00:04.2]} 46... Kxa7 {[%clk 0:00:10.2]} 47. Ne5
{[%clk 0:00:05.1]} 47... Nc7 {[%clk 0:00:10.2]} 48. Nxf7 {[%clk 0:00:04.5]}
48... Nd5 {[%clk 0:00:10.6]} 49. Nxh6 {[%clk 0:00:04.5]} 49... Nxe3+ {[%clk
0:00:10.4]} 50. Kf3 {[%clk 0:00:05.2]} 50... Nd5 {[%clk 0:00:10.4]} 51. Nf7
{[%clk 0:00:05.7]} 51... Kb6 {[%clk 0:00:09.9]} 52. Ne5 {[%clk 0:00:04.5]} 52...
Ne7 {[%clk 0:00:10.1]} 53. Ke3 {[%clk 0:00:03.2]} 53... Kxb5 {[%clk 0:00:10.2]}
54. Kd4 {[%clk 0:00:04.1]} 54... Kb6 {[%clk 0:00:10.1]} 55. Kc4 {[%clk
0:00:03.8]} 55... Kc7 {[%clk 0:00:10.2]} 56. Kc5 {[%clk 0:00:04.4]} 56... Kd8
{[%clk 0:00:04.5]} 57. Kd6 {[%clk 0:00:04.7]} 57... Ke8 {[%clk 0:00:04.9]} 58.
Ke6 {[%clk 0:00:05.2]} 58... Kf8 {[%clk 0:00:04.8]} 59. Kf6 {[%clk 0:00:05.6]}
59... Nd5+ {[%clk 0:00:05]} 60. Kxg6 {[%clk 0:00:06.1]} 60... Ne3 {[%clk
0:00:05.9]} 61. Kg5 {[%clk 0:00:04.3]} 61... Kg7 {[%clk 0:00:05.2]} 62. Nf3
{[%clk 0:00:03.9]} 62... Kf7 {[%clk 0:00:02.8]} 63. Nh4 {[%clk 0:00:03.6]} 63...
Nf1 {[%clk 0:00:02.9]} 64. Nf3 {[%clk 0:00:04.2]} 64... Ne3 {[%clk 0:00:03]} 65.
Nd4 {[%clk 0:00:04.6]} 65... Nf1 {[%clk 0:00:02.1]} 66. Nxf5 {[%clk 0:00:05.2]}
66... Nxh2 {[%clk 0:00:02.3]} 67. Nd4 {[%clk 0:00:04.8]} 67... Nf1 {[%clk
0:00:02.3]} 68. g4 {[%clk 0:00:05.1]} 68... Nd2 {[%clk 0:00:02.3]} 69. f5 {[%clk
0:00:05.3]} 69... Ne4+ {[%clk 0:00:01]} 70. Kf4 {[%clk 0:00:06]} 70... Nd6
{[%clk 0:00:01.1]} 71. g5 {[%clk 0:00:06.7]} 71... Ne8 {[%clk 0:00:01.5]} 72.
Nc6 {[%clk 0:00:05.5]} 72... Kg7 {[%clk 0:00:01.7]} 73. Ne5 {[%clk 0:00:06]}
73... Nc7 {[%clk 0:00:01.2]} 74. f6+ {[%clk 0:00:05.8]} 74... Kf8 {[%clk
0:00:01.6]} 75. Kf5 {[%clk 0:00:06.7]} 75... Nd5 {[%clk 0:00:01.8]} 76. g6
{[%clk 0:00:07.3]} 76... Ne3+ {[%clk 0:00:02.2]} 77. Ke6 {[%clk 0:00:07.1]}
77... Nc2 {[%clk 0:00:01.6]} 78. Nd7+ {[%clk 0:00:06]} 78... Kg8 {[%clk
0:00:01.3]} 79. f7+ {[%clk 0:00:06.3]} 79... Kg7 {[%clk 0:00:01.5]} 80. f8=Q+
{[%clk 0:00:06.7]} 1-0

[Event "Early-Titled-Tuesday-Blitz-April-16-2024"]
[Site "Chess.com"]
[Date "2024.04.16"]
[Round "8"]
[White "Manukyan_Artak"]
[Black "Alexchess1984"]
[Result "0-1"]
[WhiteElo "2508"]
[BlackElo "2676"]
[TimeControl "180+1"]
[EndTime "9:26:06 PDT"]
[Termination "Alexchess1984 won by resignation"]

1. e4 {[%clk 0:03:00.9]} 1... e6 {[%clk 0:02:46.2]} 2. d4 {[%clk 0:02:55.6]}
2... d5 {[%clk 0:02:45.7]} 3. e5 {[%clk 0:02:56.2]} 3... c5 {[%clk 0:02:45.2]}
4. c3 {[%clk 0:02:56.6]} 4... Nc6 {[%clk 0:02:45.3]} 5. Nf3 {[%clk 0:02:56.8]}
5... Nge7 {[%clk 0:02:42.8]} 6. Bd3 {[%clk 0:02:54.5]} 6... cxd4 {[%clk
0:02:42]} 7. cxd4 {[%clk 0:02:53.9]} 7... Nf5 {[%clk 0:02:42.7]} 8. Bxf5 {[%clk
0:02:52.9]} 8... exf5 {[%clk 0:02:43.6]} 9. O-O {[%clk 0:02:52.9]} 9... Be7
{[%clk 0:02:43.7]} 10. Nc3 {[%clk 0:02:52.6]} 10... Be6 {[%clk 0:02:43.8]} 11.
g3 {[%clk 0:02:52.8]} 11... g5 {[%clk 0:02:43.2]} 12. a3 {[%clk 0:02:49.4]}
12... h6 {[%clk 0:02:41.9]} 13. b4 {[%clk 0:02:48.7]} 13... Qd7 {[%clk
0:02:40.1]} 14. Na4 {[%clk 0:02:37.2]} 14... b6 {[%clk 0:02:39.2]} 15. Bb2
{[%clk 0:02:36.1]} 15... f4 {[%clk 0:02:36]} 16. Kh1 {[%clk 0:02:34.5]} 16...
Bg4 {[%clk 0:02:31]} 17. Qd3 {[%clk 0:02:33.1]} 17... Bf5 {[%clk 0:02:30.1]} 18.
Qe2 {[%clk 0:02:31.2]} 18... Be4 {[%clk 0:02:30.1]} 19. Nc3 {[%clk 0:02:30.7]}
19... Nxd4 {[%clk 0:02:24.6]} 0-1

[Event "Early-Titled-Tuesday-Blitz-April-16-2024"]
[Site "Chess.com"]
[Date "2024.04.16"]
[Round "8"]
[White "vangulio"]
[Black "lamomiajunior"]
[Result "1-0"]
[WhiteElo "2584"]
[BlackElo "2721"]
[TimeControl "180+1"]
[EndTime "9:26:25 PDT"]
[Termination "vangulio won by checkmate"]

1. e4 {[%clk 0:03:00.9]} 1... c5 {[%clk 0:02:59.8]} 2. Nf3 {[%clk 0:03:00.5]}
2... d6 {[%clk 0:03:00.1]} 3. d4 {[%clk 0:03:01.2]} 3... cxd4 {[%clk 0:03:01]}
4. Nxd4 {[%clk 0:03:01.8]} 4... Nf6 {[%clk 0:03:01.6]} 5. Nc3 {[%clk 0:03:02.5]}
5... a6 {[%clk 0:03:02.4]} 6. Be3 {[%clk 0:03:02.8]} 6... e6 {[%clk 0:02:57.9]}
7. Be2 {[%clk 0:03:00.3]} 7... Nc6 {[%clk 0:02:56.5]} 8. O-O {[%clk 0:03:00.4]}
8... Be7 {[%clk 0:02:55.5]} 9. f4 {[%clk 0:02:54.4]} 9... O-O {[%clk 0:02:54.3]}
10. Kh1 {[%clk 0:02:53.6]} 10... Qc7 {[%clk 0:02:51.4]} 11. Qe1 {[%clk
0:02:42.7]} 11... Bd7 {[%clk 0:02:45]} 12. Qg3 {[%clk 0:02:41.9]} 12... Kh8
{[%clk 0:02:43.3]} 13. Rae1 {[%clk 0:02:40.1]} 13... b5 {[%clk 0:02:41.8]} 14.
a3 {[%clk 0:02:38.7]} 14... Rac8 {[%clk 0:02:39.4]} 15. Nxc6 {[%clk 0:02:32.8]}
15... Bxc6 {[%clk 0:02:38.1]} 16. Bd4 {[%clk 0:02:26.8]} 16... Rg8 {[%clk
0:02:30.6]} 17. Bd3 {[%clk 0:02:24.6]} 17... Nd7 {[%clk 0:02:29.5]} 18. Qh3
{[%clk 0:02:16.1]} 18... e5 {[%clk 0:02:27.5]} 19. Nd5 {[%clk 0:02:12.7]} 19...
Bxd5 {[%clk 0:02:26.2]} 20. exd5 {[%clk 0:02:13.6]} 20... Bf6 {[%clk 0:02:24.7]}
21. Qxh7# {[%clk 0:02:12]} 1-0

[Event "Early-Titled-Tuesday-Blitz-April-16-2024"]
[Site "Chess.com"]
[Date "2024.04.16"]
[Round "8"]
[White "Grossboss19"]
[Black "Flawless_Fighter"]
[Result "1/2-1/2"]
[WhiteElo "2612"]
[BlackElo "2757"]
[TimeControl "180+1"]
[EndTime "9:27:04 PDT"]
[Termination "Game drawn by repetition"]

1. c4 {[%clk 0:02:58.4]} 1... e6 {[%clk 0:02:59.7]} 2. Nc3 {[%clk 0:02:58.4]}
2... d5 {[%clk 0:03:00.6]} 3. d4 {[%clk 0:02:58.8]} 3... Nf6 {[%clk 0:03:01]} 4.
cxd5 {[%clk 0:02:58.8]} 4... Nxd5 {[%clk 0:03:01.6]} 5. e4 {[%clk 0:02:57.7]}
5... Nxc3 {[%clk 0:03:01.1]} 6. bxc3 {[%clk 0:02:58.6]} 6... c5 {[%clk
0:03:01.7]} 7. Nf3 {[%clk 0:02:59.2]} 7... cxd4 {[%clk 0:03:01.3]} 8. cxd4
{[%clk 0:03:00.1]} 8... Bb4+ {[%clk 0:03:01.2]} 9. Bd2 {[%clk 0:03:00.8]} 9...
Bxd2+ {[%clk 0:03:01.2]} 10. Qxd2 {[%clk 0:03:01.7]} 10... O-O {[%clk
0:03:01.1]} 11. Bc4 {[%clk 0:03:02.4]} 11... Nd7 {[%clk 0:03:00.2]} 12. O-O
{[%clk 0:03:02.5]} 12... b6 {[%clk 0:03:00.3]} 13. d5 {[%clk 0:02:51.8]} 13...
Nf6 {[%clk 0:02:58]} 14. Rfe1 {[%clk 0:02:48.5]} 14... exd5 {[%clk 0:02:54]} 15.
exd5 {[%clk 0:02:46.3]} 15... Bb7 {[%clk 0:02:53.3]} 16. Rad1 {[%clk 0:02:45.5]}
16... Qd6 {[%clk 0:02:48.3]} 17. Nd4 {[%clk 0:02:30.5]} 17... g6 {[%clk
0:02:45.8]} 18. Qg5 {[%clk 0:02:19.8]} 18... Rae8 {[%clk 0:02:43.7]} 19. Nf5
{[%clk 0:02:04.1]} 19... Rxe1+ {[%clk 0:02:40.5]} 20. Rxe1 {[%clk 0:02:03.5]}
20... Qb4 {[%clk 0:02:41.2]} 21. Nh6+ {[%clk 0:01:32.6]} 21... Kg7 {[%clk
0:02:40.6]} 22. Nf5+ {[%clk 0:01:32.5]} 22... Kg8 {[%clk 0:02:40.8]} 23. Nh6+
{[%clk 0:01:29.9]} 23... Kg7 {[%clk 0:02:40.3]} 24. Nf5+ {[%clk 0:01:30.2]}
24... Kg8 {[%clk 0:02:40.6]} 1/2-1/2

[Event "Early-Titled-Tuesday-Blitz-April-16-2024"]
[Site "Chess.com"]
[Date "2024.04.16"]
[Round "8"]
[White "GoltsevDmitry2000"]
[Black "Vahe_Danielyan"]
[Result "1-0"]
[WhiteElo "2781"]
[BlackElo "2608"]
[TimeControl "180+1"]
[EndTime "9:27:33 PDT"]
[Termination "GoltsevDmitry2000 won by resignation"]

1. e4 {[%clk 0:02:59.4]} 1... c6 {[%clk 0:02:57]} 2. e5 {[%clk 0:02:59.5]} 2...
d5 {[%clk 0:02:57.9]} 3. exd6 {[%clk 0:03:00.4]} 3... exd6 {[%clk 0:02:58.5]} 4.
d4 {[%clk 0:03:01.3]} 4... Nf6 {[%clk 0:02:59.1]} 5. Nf3 {[%clk 0:03:02.2]} 5...
d5 {[%clk 0:02:59.2]} 6. c4 {[%clk 0:03:03.1]} 6... Bb4+ {[%clk 0:02:58.1]} 7.
Nc3 {[%clk 0:03:03.5]} 7... O-O {[%clk 0:02:58.1]} 8. Be2 {[%clk 0:03:04]} 8...
dxc4 {[%clk 0:02:58.1]} 9. Bxc4 {[%clk 0:03:04.9]} 9... Re8+ {[%clk 0:02:58.5]}
10. Be3 {[%clk 0:03:05.3]} 10... Nd5 {[%clk 0:02:57.4]} 11. O-O {[%clk
0:03:05.8]} 11... Bg4 {[%clk 0:02:32.9]} 12. Qb3 {[%clk 0:03:01]} 12... Bxc3
{[%clk 0:02:27.6]} 13. bxc3 {[%clk 0:03:01.9]} 13... Bxf3 {[%clk 0:02:27.5]} 14.
Qxb7 {[%clk 0:02:56.5]} 14... Nd7 {[%clk 0:02:19]} 15. gxf3 {[%clk 0:02:56]}
15... N7b6 {[%clk 0:02:18.7]} 16. Bb3 {[%clk 0:02:52.7]} 16... Qf6 {[%clk
0:02:06.8]} 17. Kg2 {[%clk 0:02:41.9]} 17... Nxc3 {[%clk 0:01:53.4]} 18. Rac1
{[%clk 0:02:37.8]} 18... Nbd5 {[%clk 0:01:49.5]} 19. Bxd5 {[%clk 0:02:37.9]}
19... Nxd5 {[%clk 0:01:50.4]} 20. Qxc6 {[%clk 0:02:37.8]} 20... Qf5 {[%clk
0:01:48.9]} 21. Rc5 {[%clk 0:02:34.8]} 21... Rad8 {[%clk 0:01:46]} 22. Rfc1
{[%clk 0:02:28.6]} 22... Re6 {[%clk 0:01:44.2]} 23. Qxd5 {[%clk 0:02:20.1]}
23... Rg6+ {[%clk 0:01:35]} 24. Kh1 {[%clk 0:02:17.5]} 1-0